bitfinex/quotes_BTCUSD_20260215
["timestamp","ask_amount","ask_price","bid_price","bid_amount"]
[1771130114655,0.0004,70355.0,70350.0,0.09523616]
[1771130114853,0.0154,70355.0,70352.0,0.004]
[1771130115263,0.00196461,70355.0,70353.0,0.02416321]
[1771130115443,0.07106545,70358.0,70353.0,0.02416321]
[1771130115864,0.07118325,70360.0,70353.0,0.09523335]
[1771130116187,0.00012,70360.0,70354.0,0.07106916]
[1771130116350,0.008,70355.0,70353.0,0.02416321]
[1771130116529,0.008,70355.0,70354.0,0.09523237]
[1771130116735,0.00012,70360.0,70354.0,0.09523237]
[1771130116937,0.080184,70360.0,70354.0,0.02416321]
[1771130117163,0.00912,70360.0,70354.0,0.02416321]
[1771130117367,0.07106793,70356.0,70348.0,0.09543813]
[1771130117567,0.009,70355.0,70354.0,0.003]
[1771130117980,0.07106815,70355.0,70348.0,0.09543813]
[1771130118342,0.07106732,70356.0,70349.0,0.07107405]
[1771130119186,0.07106732,70356.0,70354.0,0.003]
[1771130119388,0.07106815,70355.0,70354.0,0.003]
[1771130119730,0.07106684,70357.0,70348.0,0.02436321]
[1771130119937,0.07506743,70356.0,70349.0,0.07307418]
[1771130120068,0.07106684,70357.0,70349.0,0.07107421]
[1771130120273,0.07106754,70356.0,70349.0,0.07107421]
[1771130120500,0.006,70355.0,70354.0,0.003]
[1771130120839,0.07106754,70356.0,70349.0,0.07107421]
[1771130121069,0.07506754,70356.0,70349.0,0.07307421]
[1771130121272,0.07106822,70355.0,70349.0,0.002]
[1771130121591,0.004,70356.0,70349.0,0.002]
[1771130121592,0.62304871,70354.0,70349.0,0.002]
[1771130121793,0.07107092,70353.0,70349.0,0.002]
[1771130121998,0.07546788,70356.0,70349.0,0.002]
[1771130122244,0.07106888,70355.0,70348.0,0.07127447]
[1771130122611,0.007,70355.0,70354.0,0.003]
[1771130122812,0.07146788,70356.0,70349.0,0.07107408]
[1771130123197,0.07946788,70356.0,70349.0,0.07407408]
[1771130123416,0.07146788,70356.0,70349.0,0.07107408]
[1771130123821,0.007,70355.0,70354.0,0.003]
[1771130124025,0.07106828,70355.0,70349.0,0.07107408]
[1771130125211,0.07106828,70355.0,70348.0,0.07127499]
[1771130125416,0.07646744,70356.0,70349.0,0.07407421]
[1771130125614,0.0004,70356.0,70352.0,0.07107053]
[1771130125841,0.0004,70356.0,70350.0,0.07107255]
[1771130126045,0.003,70355.0,70350.0,0.09523576]
[1771130126261,0.0004,70356.0,70350.0,0.09523576]
[1771130126468,0.0044,70356.0,70350.0,0.07107255]
[1771130126661,0.0044,70356.0,70349.0,0.07407421]
[1771130126862,0.07146782,70356.0,70349.0,0.07107421]
[1771130127093,0.003,70355.0,70350.0,0.003]
[1771130127852,0.003,70355.0,70350.0,0.07407284]
[1771130128273,0.0004,70356.0,70350.0,0.07107284]
[1771130128808,0.0054,70356.0,70350.0,0.07107284]
[1771130129015,0.0004,70356.0,70349.0,0.02416321]
[1771130129221,0.003,70355.0,70350.0,0.003]
[1771130129419,0.0004,70356.0,70354.0,0.07106913]
[1771130129772,0.0054,70356.0,70354.0,0.07106913]
[1771130130014,0.00012,70360.0,70351.0,0.02416321]
[1771130130392,0.00012,70360.0,70355.0,0.07106732]
[1771130130721,0.00012,70360.0,70357.0,0.02416321]
[1771130131336,0.00012,70360.0,70352.0,0.28428343]
[1771130131337,0.00012,70360.0,70358.0,0.09522833]
[1771130131833,0.00012,70360.0,70358.0,0.02416321]
[1771130132047,0.0004132,70383.0,70380.0,0.0710421]
[1771130132237,0.00084644,70383.0,70372.0,0.02416321]
[1771130132532,0.00084644,70383.0,70375.0,0.07104721]
[1771130132833,0.07104098,70382.0,70374.0,0.07104896]
[1771130133038,0.00084644,70383.0,70375.0,0.07104769]
[1771130133196,0.00084644,70383.0,70373.0,4.5e-05]
[1771130133414,0.00084644,70383.0,70374.0,0.02416321]
[1771130134082,0.00084644,70383.0,70377.0,0.07104524]
[1771130134236,0.00084644,70383.0,70380.0,0.07104225]
[1771130134409,0.00084644,70383.0,70380.0,0.02416321]
[1771130135115,0.00384644,70383.0,70380.0,0.02416321]
[1771130135515,0.00084644,70383.0,70380.0,0.07104257]
[1771130135861,0.00084644,70383.0,70382.0,0.02416321]
[1771130136107,0.00484644,70383.0,70382.0,0.0952041]
[1771130136720,0.00484644,70383.0,70382.0,0.02416321]
[1771130136924,0.0004,70383.0,70382.0,0.0952041]
[1771130137341,0.0004,70391.0,70378.0,0.02416321]
[1771130137538,0.00052994,70391.0,70378.0,0.50553587]
[1771130137672,0.0502313,70391.0,70381.0,0.071041]
[1771130137877,0.02449182,70397.0,70383.0,4.5e-05]
[1771130138173,0.00012,70390.0,70384.0,0.07103847]
[1771130138415,0.05382301,70392.0,70383.0,0.09537768]
[1771130138598,0.05382301,70392.0,70384.0,0.07103805]
[1771130138599,0.03249507,70392.0,70384.0,0.07103805]
[1771130138932,0.07103535,70388.0,70383.0,0.02433815]
[1771130139134,0.07103095,70392.0,70383.0,0.02633815]
[1771130139286,0.07103387,70389.0,70383.0,0.02433815]
[1771130139629,0.00316388,70397.0,70383.0,0.02433815]
[1771130139805,0.04970415,70391.0,70383.0,0.02433815]
[1771130140004,0.07103407,70389.0,70383.0,0.02143815]
[1771130140207,0.07103311,70390.0,70383.0,0.02143815]
[1771130140441,0.07103177,70392.0,70384.0,0.07103884]
[1771130140764,0.07103254,70391.0,70383.0,0.09447795]
[1771130140900,0.00316388,70397.0,70383.0,0.02143815]
[1771130141099,0.002,70389.0,70383.0,0.09947774]
[1771130141342,0.28411325,70395.0,70383.0,0.09947774]
[1771130141343,0.05170302,70392.0,70385.0,0.07103781]
[1771130141497,0.07103005,70393.0,70383.0,0.02143815]
[1771130141709,0.0001708,70397.0,70380.0,0.28440997]
[1771130141710,0.003,70392.0,70384.0,0.002]
[1771130142029,0.0001708,70397.0,70385.0,0.02459401]
[1771130142231,0.0001708,70392.0,70385.0,0.02459401]
[1771130142552,0.07103354,70390.0,70385.0,0.02459401]
[1771130142767,0.04970614,70389.0,70383.0,0.006]
[1771130142938,0.0283782,70389.0,70383.0,0.00612982]
[1771130143137,0.07120434,70390.0,70383.0,0.00612982]
[1771130143764,0.0001708,70390.0,70370.0,0.34068]
[1771130143766,0.0001708,70390.0,70360.0,0.00012]
[1771130143767,0.47133956,70386.0,70360.0,0.00012]
[1771130143979,0.091,70389.0,70360.0,0.0711829]
[1771130143980,0.47133956,70367.0,70360.0,0.0711829]
[1771130144200,0.09387527,70368.0,70360.0,0.00012]
[1771130144201,0.09387599,70368.0,70360.0,0.00012]
[1771130144333,0.07105597,70368.0,70360.0,0.00012]
[1771130144546,0.07105689,70367.0,70360.0,0.00012]
[1771130144805,0.07105418,70369.0,70362.0,0.07106104]
[1771130144998,0.47133956,70371.0,70360.0,0.00212]
[1771130145202,0.07105999,70364.0,70360.0,0.00212]
[1771130145401,0.47133956,70367.0,70358.0,0.0710647]
[1771130145722,0.002,70367.0,70360.0,0.07806289]
[1771130145904,0.07105524,70368.0,70360.0,0.07106289]
[1771130146119,0.07105625,70367.0,70360.0,0.07106289]
[1771130147029,0.07117308,70370.0,70362.0,0.07106029]
[1771130147652,0.07117308,70370.0,70363.0,0.07106002]
[1771130147949,0.002,70367.0,70363.0,0.07106002]
[1771130148236,0.07105404,70369.0,70362.0,0.07106107]
[1771130148406,0.07105404,70369.0,70362.0,0.07606107]
[1771130148613,0.07106003,70364.0,70360.0,0.02326473]
[1771130148822,0.07105932,70364.0,70356.0,0.07106647]
[1771130149027,0.07105932,70364.0,70363.0,0.005]
[1771130150260,0.07105932,70364.0,70357.0,0.07106572]
[1771130150547,0.07105932,70364.0,70362.0,0.003]
[1771130150698,0.07106024,70363.0,70356.0,0.0710668]
[1771130150894,0.07105932,70364.0,70356.0,0.0710668]
[1771130151159,0.07705932,70364.0,70363.0,0.003]
[1771130151368,0.07105932,70364.0,70356.0,0.0710668]
[1771130151582,0.07705932,70364.0,70362.0,0.003]
[1771130151974,0.07105932,70364.0,70360.0,0.0002]
[1771130152181,0.07105401,70369.0,70353.0,0.07106965]
[1771130152365,0.07106295,70361.0,70352.0,0.0003472]
[1771130152556,0.07106295,70361.0,70354.0,0.07106903]
[1771130152757,0.47133956,70364.0,70352.0,0.0003472]
[1771130153021,0.07106007,70363.0,70352.0,0.0003472]
[1771130153245,0.07106007,70363.0,70352.0,0.02361193]
[1771130153674,0.07106007,70363.0,70356.0,0.07106698]
[1771130153875,0.07106119,70362.0,70354.0,0.07106824]
[1771130154281,0.07106021,70363.0,70355.0,0.07106811]
[1771130154546,0.003,70363.0,70355.0,0.07106811]
[1771130154727,0.07106123,70362.0,70355.0,0.07106811]
[1771130154912,0.07106102,70364.0,70356.0,0.07106706]
[1771130155125,0.003,70362.0,70356.0,0.07106706]
[1771130155420,0.003,70362.0,70354.0,0.003]
[1771130155626,0.003,70362.0,70355.0,0.07106815]
[1771130156422,0.0710612,70362.0,70355.0,0.07106805]
[1771130156624,0.0710612,70362.0,70355.0,0.08506805]
[1771130156828,0.07506086,70363.0,70355.0,0.08506805]
[1771130157030,0.07106086,70363.0,70356.0,0.07106682]
[1771130157228,0.004,70362.0,70355.0,0.08406736]
[1771130157391,0.004,70362.0,70358.0,0.07106502]
[1771130157595,0.07105915,70364.0,70356.0,0.0710652]
[1771130157797,0.07105834,70365.0,70358.0,0.07106501]
[1771130158041,0.004,70363.0,70358.0,0.07106501]
[1771130158278,0.07105834,70365.0,70358.0,0.07106501]
[1771130159515,0.005,70362.0,70358.0,0.011]
[1771130159709,0.07105482,70369.0,70361.0,0.07106209]
[1771130160105,0.07105482,70369.0,70359.0,0.07106334]
[1771130160106,0.28418434,70377.0,70359.0,0.07106334]
[1771130160317,0.47133956,70369.0,70355.0,0.07106752]
[1771130160547,0.07106131,70362.0,70358.0,0.01]
[1771130160869,0.07106043,70363.0,70356.0,0.07106695]
[1771130161039,0.0004,70362.0,70361.0,0.008]
[1771130161238,0.0004,70362.0,70356.0,0.07106695]
[1771130161439,0.00043298,70371.0,70354.0,0.02326473]
[1771130161642,0.07105476,70369.0,70361.0,0.07106116]
[1771130161844,0.00043298,70371.0,70368.0,0.07105435]
[1771130162046,0.00043298,70371.0,70365.0,0.0710578]
[1771130162428,5e-05,70370.0,70365.0,0.09432253]
[1771130162627,5e-05,70370.0,70366.0,0.07105684]
[1771130162836,5e-05,70370.0,70367.0,0.09432055]
[1771130163042,5e-05,70370.0,70367.0,0.02326473]
[1771130163482,5e-05,70370.0,70367.0,0.0943206]
[1771130163723,5e-05,70370.0,70367.0,0.02326473]
[1771130163899,5e-05,70370.0,70365.0,0.07105735]
[1771130164106,0.00605,70370.0,70367.0,0.02726473]
[1771130164284,0.00605,70370.0,70367.0,0.0983206]
[1771130164463,0.00605,70370.0,70368.0,0.07105457]
[1771130164673,0.00605,70370.0,70368.0,0.0943193]
[1771130164882,0.00605,70370.0,70368.0,0.02326473]
[1771130165313,0.00315,70370.0,70368.0,0.02326473]
[1771130165772,0.00043298,70371.0,70368.0,0.02326473]
[1771130166174,0.009,70370.0,70368.0,0.02326473]
[1771130166377,0.00043298,70371.0,70368.0,0.02326473]
[1771130166788,0.01,70370.0,70368.0,0.02726473]
[1771130169093,0.07104645,70377.0,70368.0,0.02326473]
[1771130169209,0.07117623,70377.0,70368.0,0.02326473]
[1771130169413,0.01,70370.0,70369.0,0.09431808]
[1771130169635,0.00012978,70377.0,70376.0,0.07104694]
[1771130169836,0.00012978,70377.0,70375.0,0.07104787]
[1771130170039,0.00012978,70377.0,70372.0,0.09431497]
[1771130170239,0.00012978,70377.0,70373.0,0.07104968]
[1771130170454,0.00012978,70377.0,70372.0,0.09431541]
[1771130171066,0.01012978,70377.0,70375.0,0.004]
[1771130171475,0.01012978,70377.0,70376.0,0.07104694]
[1771130172259,0.00012978,70377.0,70376.0,0.07104694]
[1771130172666,0.00512978,70377.0,70376.0,0.07104694]
[1771130172866,0.00012978,70377.0,70374.0,0.09431358]
[1771130173069,0.00012978,70377.0,70376.0,0.002]
[1771130173273,0.00512978,70377.0,70376.0,0.07304694]
[1771130173474,0.00012978,70377.0,70376.0,0.07104694]
[1771130173911,0.00612978,70377.0,70376.0,0.002]
[1771130174132,0.00012978,70377.0,70375.0,0.02310126]
[1771130174320,0.00012978,70377.0,70376.0,0.07104694]
[1771130174527,0.00012978,70377.0,70375.0,0.02310126]
[1771130175077,0.00012978,70377.0,70376.0,0.0941482]
[1771130175277,0.00712978,70377.0,70376.0,0.0961482]
[1771130175585,0.00012978,70377.0,70376.0,0.02310126]
[1771130176009,0.00712978,70377.0,70376.0,0.0941482]
[1771130176277,0.00012978,70377.0,70376.0,0.0941482]
[1771130176684,0.00712978,70377.0,70376.0,0.0961482]
[1771130178452,0.00012978,70377.0,70376.0,0.0941482]
[1771130178650,0.00712978,70377.0,70376.0,0.0961482]
[1771130178846,0.00752978,70377.0,70376.0,0.0961482]
[1771130179056,0.00052978,70377.0,70376.0,0.0941482]
[1771130179250,0.00852978,70377.0,70376.0,0.0961482]
[1771130179455,0.00052978,70377.0,70376.0,0.0941482]
[1771130179833,0.00852978,70377.0,70372.0,0.07105032]
[1771130180063,0.00852978,70377.0,70370.0,0.5405749]
[1771130180265,0.00852978,70377.0,70374.0,0.02310126]
[1771130181407,0.00052978,70377.0,70374.0,0.02310126]
[1771130181708,0.00052978,70377.0,70375.0,0.02310126]
[1771130181912,0.00952978,70377.0,70375.0,0.02310126]
[1771130182061,0.00052978,70377.0,70376.0,0.07104694]
[1771130182263,0.01052978,70377.0,70375.0,0.02310126]
[1771130182677,0.00052978,70377.0,70375.0,0.02310126]
[1771130182876,0.01152978,70377.0,70375.0,0.02220126]
[1771130183328,0.00052978,70377.0,70375.0,0.02020126]
[1771130183728,0.00052978,70377.0,70373.0,0.07104958]
[1771130184605,0.01252978,70377.0,70375.0,0.002]
[1771130184789,0.00052978,70377.0,70373.0,0.07104958]
[1771130184987,0.00052978,70377.0,70373.0,0.09415084]
[1771130185215,0.00052978,70377.0,70369.0,0.28421493]
[1771130185216,0.08357602,70377.0,70369.0,0.071053]
[1771130185420,0.07157602,70377.0,70371.0,0.07105198]
[1771130185626,0.00052978,70377.0,70371.0,0.07105198]
[1771130185859,0.01252978,70377.0,70375.0,0.002]
[1771130186032,0.00052978,70377.0,70371.0,0.07105198]
[1771130186436,0.01552978,70377.0,70371.0,0.07105198]
[1771130187576,0.00052978,70377.0,70371.0,0.07105198]
[1771130187741,0.00700001,70377.0,70375.0,0.003]
[1771130188647,1e-08,70377.0,70374.0,0.07104842]
[1771130188879,0.00500001,70377.0,70374.0,0.07104842]
[1771130189086,1e-08,70377.0,70374.0,0.07104842]
[1771130189515,0.00900001,70377.0,70375.0,0.003]
[1771130190803,1e-08,70377.0,70374.0,0.07104842]
[1771130191006,0.00800001,70377.0,70374.0,0.07404842]
[1771130191333,1e-08,70377.0,70366.0,0.36535133]
[1771130191572,0.00900001,70377.0,70375.0,0.003]
[1771130191783,0.00610001,70377.0,70372.0,0.0710503]
[1771130191923,0.0004,70378.0,70372.0,0.0710503]
[1771130192124,0.004,70377.0,70374.0,0.007]
[1771130192325,0.0004,70378.0,70372.0,0.0710503]
[1771130192709,0.004,70377.0,70375.0,0.006]
[1771130193980,0.0004,70378.0,70372.0,0.0710503]
[1771130194206,0.004,70377.0,70374.0,0.008]
[1771130194478,0.07144515,70378.0,70371.0,0.0710503]
[1771130194678,0.07144515,70378.0,70372.0,0.07105088]
[1771130194846,0.004,70377.0,70375.0,0.007]
[1771130195043,0.07144515,70378.0,70371.0,0.07105169]
[1771130195449,0.44624686,70376.0,70370.0,0.0710527]
[1771130195650,0.02379889,70375.0,70372.0,0.0712508]
[1771130195963,0.02379889,70375.0,70372.0,0.0002]
[1771130196165,0.07144562,70378.0,70372.0,0.0002]
[1771130196576,0.07144527,70378.0,70372.0,0.0002]
[1771130197194,0.02379889,70377.0,70372.0,0.0002]
[1771130197436,0.02379889,70377.0,70360.0,0.0002]
[1771130197747,0.28420652,70372.0,70360.0,0.0002]
[1771130197936,0.28420652,70372.0,70362.0,0.07106082]
[1771130197937,0.07105466,70369.0,70362.0,0.07106082]
[1771130198135,0.09485355,70369.0,70362.0,0.07106082]
[1771130198444,0.07105502,70368.0,70360.0,0.07126238]
[1771130198603,0.02379889,70365.0,70360.0,0.0002]
[1771130198799,0.44624686,70365.0,70360.0,0.0002]
[1771130199028,0.02379889,70364.0,70360.0,0.0002]
[1771130199233,0.07106414,70359.0,70357.0,0.0002]
[1771130199437,0.07106243,70361.0,70357.0,0.0002]
[1771130200256,0.02379889,70362.0,70357.0,0.0002]
[1771130200413,9.839e-05,70377.0,70357.0,0.0002]
[1771130200414,0.09490423,70368.0,70361.0,0.07106189]
[1771130200798,0.10090423,70368.0,70361.0,0.07106189]
[1771130201200,0.09490423,70368.0,70361.0,0.07106189]
[1771130201398,0.10290423,70368.0,70361.0,0.07106189]
[1771130201814,0.10290423,70368.0,70361.0,0.07120749]
[1771130202206,0.09490423,70368.0,70361.0,0.07120749]
[1771130202732,0.09490423,70368.0,70356.0,0.28044848]
[1771130202932,0.09490423,70368.0,70360.0,0.07106214]
[1771130203128,0.09490423,70368.0,70361.0,0.07106171]
[1771130203336,0.07105685,70367.0,70355.0,0.0001757]
[1771130203603,5e-05,70365.0,70361.0,0.07106122]
[1771130204404,5e-05,70365.0,70360.0,0.07106277]
[1771130204559,5e-05,70365.0,70361.0,0.07126165]
[1771130204960,5e-05,70365.0,70362.0,0.07106097]
[1771130205179,0.01005,70365.0,70362.0,0.07106097]
[1771130205581,0.01005,70365.0,70361.0,0.07126171]
[1771130205940,5e-05,70365.0,70361.0,0.07126171]
[1771130206060,5e-05,70365.0,70361.0,0.07126199]
[1771130207105,5e-05,70365.0,70361.0,0.0002]
[1771130207306,5e-05,70365.0,70355.0,0.0001757]
[1771130207500,0.07106193,70362.0,70355.0,0.0001757]
[1771130208117,0.07106241,70361.0,70355.0,0.0001757]
[1771130208695,0.07106241,70361.0,70355.0,0.0041757]
[1771130208922,0.07106241,70361.0,70355.0,0.0001757]
[1771130209335,0.08106241,70361.0,70355.0,0.0041757]
[1771130210379,0.07106241,70361.0,70355.0,0.0001757]
[1771130210743,0.42038344,70359.0,70350.0,0.00012]
[1771130210947,0.07107067,70353.0,70350.0,0.00012]
[1771130211135,0.07107138,70352.0,70350.0,0.00012]
[1771130211575,0.07107022,70353.0,70350.0,0.00012]
[1771130211799,0.02346891,70354.0,70350.0,0.00012]
[1771130212004,0.02346891,70354.0,70350.0,0.00412]
[1771130212205,0.02356724,70354.0,70350.0,0.00012]
[1771130212420,0.02356724,70354.0,70350.0,0.00712]
[1771130212608,0.004,70352.0,70350.0,0.00712]
[1771130213200,0.05816568,70356.0,70350.0,0.00712]
[1771130213456,0.05816568,70356.0,70350.0,0.00755298]
[1771130214321,0.05816568,70356.0,70350.0,0.00055298]
[1771130214516,0.007,70354.0,70350.0,0.00455298]
[1771130214914,0.05816568,70356.0,70350.0,0.00055298]
[1771130215118,0.06716568,70356.0,70350.0,0.00455298]
[1771130215324,0.06716568,70356.0,70350.0,0.00055298]
[1771130215527,0.07106822,70355.0,70350.0,0.00055298]
[1771130215701,0.007,70354.0,70350.0,0.00455298]
[1771130216051,0.07106734,70356.0,70350.0,0.00055298]
[1771130216256,0.09453473,70358.0,70350.0,0.00055298]
[1771130216257,0.02346891,70358.0,70351.0,0.0710712]
[1771130216576,0.07106466,70359.0,70352.0,0.07107056]
[1771130217198,0.07106518,70358.0,70351.0,0.0710712]
[1771130217748,0.012,70356.0,70351.0,0.0710712]
[1771130218246,0.07106518,70358.0,70351.0,0.0710712]
[1771130218456,0.011,70358.0,70351.0,0.004]
[1771130218657,0.07106996,70354.0,70347.0,0.07127553]
[1771130218973,0.07106996,70354.0,70351.0,0.004]
[1771130219165,0.09453887,70354.0,70351.0,0.00388]
[1771130219341,0.09453887,70354.0,70347.0,0.07107543]
[1771130219538,0.09453887,70354.0,70351.0,0.003]
[1771130219735,0.07107051,70353.0,70352.0,0.0002]
[1771130219939,0.07107342,70350.0,70343.0,0.07108]
[1771130220140,0.09454204,70352.0,70344.0,0.07127901]
[1771130220544,0.42038344,70352.0,70340.0,0.00012]
[1771130220741,0.09454689,70346.0,70340.0,0.00021833]
[1771130221065,0.02346891,70346.0,70340.0,0.00021833]
[1771130221223,0.02346891,70346.0,70338.0,0.0002]
[1771130221224,0.02346891,70342.0,70338.0,0.0002]
[1771130221423,0.0710835,70340.0,70338.0,0.0002]
[1771130221634,0.0710835,70340.0,70337.0,0.0002]
[1771130221635,0.07108229,70341.0,70333.0,0.0002]
[1771130221842,0.07108229,70341.0,70330.0,0.00012]
[1771130221843,0.02346891,70336.0,70330.0,0.00012]
[1771130222032,0.02346891,70336.0,70330.0,0.07121295]
[1771130223176,0.07109043,70333.0,70330.0,0.00012]
[1771130223584,0.07108965,70334.0,70330.0,0.00012]
[1771130223942,0.09455815,70335.0,70330.0,0.00012]
[1771130224303,0.07108974,70334.0,70330.0,0.00012]
[1771130224462,0.07108974,70334.0,70330.0,0.00712]
[1771130224664,0.07109155,70332.0,70327.0,0.0002]
[1771130224971,0.02346891,70331.0,70327.0,0.0002]
[1771130225214,0.07109292,70331.0,70327.0,0.0002]
[1771130225442,0.02346891,70333.0,70327.0,0.0002]
[1771130225665,0.42038344,70330.0,70327.0,0.0002]
[1771130225876,0.02346891,70329.0,70327.0,0.0002]
[1771130226443,0.02346891,70329.0,70328.0,0.07109543]
[1771130226981,0.4914701,70337.0,70330.0,0.07129268]
[1771130227155,0.41164551,70338.0,70331.0,0.07109158]
[1771130227572,0.43511442,70338.0,70331.0,0.07109158]
[1771130227710,0.006,70333.0,70331.0,0.07109158]
[1771130227910,0.09455533,70337.0,70330.0,0.07129321]
[1771130228155,0.02346891,70336.0,70330.0,0.07129321]
[1771130228727,0.006,70333.0,70327.0,0.0002]
[1771130229207,0.09455667,70336.0,70327.0,0.07129544]
[1771130229440,0.07108953,70334.0,70327.0,0.0002]
[1771130230017,0.42038344,70324.0,70320.0,0.07110352]
[1771130230226,0.02346891,70323.0,70319.0,0.07130428]
[1771130230372,0.02346891,70323.0,70319.0,0.0002]
[1771130231610,0.02846891,70323.0,70319.0,0.0012]
[1771130231796,0.09457109,70322.0,70319.0,0.0002]
[1771130231996,0.07110252,70321.0,70319.0,0.0002]
[1771130232356,0.09457243,70320.0,70317.0,0.0002]
[1771130232561,0.02346891,70320.0,70317.0,0.0002]
[1771130233503,0.02346891,70320.0,70317.0,0.00032993]
[1771130234524,0.09457284,70320.0,70319.0,0.002]
[1771130234708,0.07110554,70318.0,70317.0,0.00032993]
[1771130235009,0.07110554,70318.0,70317.0,0.00232993]
[1771130235207,0.07110554,70318.0,70317.0,0.00032993]
[1771130235536,0.07110554,70318.0,70311.0,0.07111184]
[1771130235924,0.07110554,70318.0,70310.0,0.06946333]
[1771130236136,0.02802989,70320.0,70308.0,0.0002447]
[1771130236382,0.02802989,70320.0,70313.0,0.07110995]
[1771130236786,0.0711046,70319.0,70311.0,0.07111245]
[1771130237038,0.02302989,70320.0,70309.0,0.07111394]
[1771130237039,0.07110734,70317.0,70309.0,0.07111394]
[1771130237270,0.07610747,70318.0,70310.0,0.07111339]
[1771130237465,0.07110765,70316.0,70309.0,0.07111433]
[1771130237668,0.07110765,70316.0,70313.0,0.003]
[1771130237843,0.07110688,70317.0,70313.0,0.003]
[1771130238042,0.07122417,70320.0,70313.0,0.07110982]
[1771130238341,0.005,70318.0,70313.0,0.07110982]
[1771130238660,0.07122417,70320.0,70313.0,0.07110982]
[1771130238857,0.02302989,70320.0,70308.0,0.0002447]
[1771130239287,0.07110562,70318.0,70309.0,0.07111364]
[1771130239512,0.07110562,70318.0,70312.0,0.07111159]
[1771130239923,0.005,70317.0,70312.0,0.07111159]
[1771130240129,0.005,70317.0,70312.0,0.07111115]
[1771130240281,0.07110481,70319.0,70312.0,0.07111115]
[1771130240474,0.07110481,70319.0,70312.0,0.07311115]
[1771130240699,0.09413523,70320.0,70312.0,0.07311115]
[1771130240700,0.07110661,70317.0,70312.0,0.002]
[1771130240904,0.02302989,70320.0,70313.0,0.07110998]
[1771130240905,0.09413345,70320.0,70313.0,0.07110998]
[1771130241103,0.00012,70320.0,70314.0,0.07110937]
[1771130241308,0.005,70317.0,70314.0,0.07110937]
[1771130241512,0.00012,70320.0,70316.0,0.07110757]
[1771130241707,0.00012,70320.0,70315.0,0.06731554]
[1771130241926,0.005,70317.0,70315.0,0.06731554]
[1771130242136,0.005,70317.0,70314.0,0.07110928]
[1771130242326,0.005,70317.0,70315.0,0.07110856]
[1771130242929,0.00012,70320.0,70315.0,0.07110856]
[1771130243238,0.012,70317.0,70315.0,0.07110856]
[1771130243638,0.04228601,70320.0,70315.0,0.07110856]
[1771130243858,0.012,70317.0,70315.0,0.07610856]
[1771130244069,0.012,70317.0,70315.0,0.005]
[1771130244237,0.04228601,70320.0,70314.0,0.07110764]
[1771130244436,0.012,70317.0,70315.0,0.005]
[1771130244639,0.04228601,70320.0,70314.0,0.07110764]
[1771130245040,0.012,70317.0,70315.0,0.005]
[1771130245629,0.012,70317.0,70304.0,1e-08]
[1771130245854,0.07111869,70305.0,70304.0,1e-08]
[1771130246049,0.40373935,70311.0,70300.0,0.00012]
[1771130246250,0.04216601,70310.0,70301.0,0.00029251]
[1771130246449,0.11328576,70304.0,70301.0,0.00029251]
[1771130246651,0.07112086,70303.0,70301.0,0.00029251]
[1771130247116,0.07112173,70302.0,70301.0,0.00029251]
[1771130247257,0.07112156,70303.0,70301.0,0.00529251]
[1771130247467,0.07112173,70302.0,70301.0,0.00029251]
[1771130247673,0.07112095,70303.0,70301.0,0.00029251]
[1771130247895,0.05616601,70303.0,70301.0,0.00529251]
[1771130248330,0.014,70303.0,70301.0,0.00529251]
[1771130248498,0.04216601,70310.0,70301.0,0.00529251]
[1771130248878,0.02290989,70336.0,70320.0,0.00012]
[1771130249073,0.02290989,70336.0,70320.0,0.3408]
[1771130249227,0.02290989,70336.0,70321.0,0.00783397]
[1771130249490,0.07108742,70336.0,70327.0,0.0710963]
[1771130249671,0.0714865,70337.0,70320.0,0.3408]
[1771130249672,0.29793547,70337.0,70320.0,0.3408]
[1771130249878,0.02290989,70326.0,70320.0,0.00012]
[1771130250084,0.07109927,70325.0,70320.0,0.00012]
[1771130250282,0.40373935,70327.0,70320.0,0.00012]
[1771130250283,0.07110163,70322.0,70320.0,0.00012]
[1771130250614,0.02290989,70321.0,70320.0,0.00012]
[1771130250816,0.07110124,70323.0,70310.0,0.07123332]
[1771130250817,0.29753547,70320.0,70310.0,0.00012]
[1771130250957,0.02290989,70319.0,70310.0,0.00012]
[1771130251387,0.02290989,70319.0,70314.0,0.07110878]
[1771130251998,0.02290989,70319.0,70312.0,0.07111111]
[1771130252201,0.07110579,70318.0,70310.0,0.00012]
[1771130252523,0.02290989,70319.0,70313.0,0.07111012]
[1771130253028,0.02690989,70319.0,70313.0,0.07111012]
[1771130253233,0.02290989,70319.0,70313.0,0.07111012]
[1771130253466,0.02290989,70319.0,70312.0,4.5e-05]
[1771130253669,0.09401613,70318.0,70313.0,0.015]
[1771130253850,0.09401613,70318.0,70312.0,4.5e-05]
[1771130254044,0.02290989,70318.0,70312.0,4.5e-05]
[1771130254228,0.02290989,70318.0,70313.0,0.012]
[1771130254427,0.02290989,70318.0,70312.0,4.5e-05]
[1771130254672,0.02690989,70318.0,70313.0,0.013]
[1771130254880,0.02290989,70344.0,70315.0,0.42653384]
[1771130255085,0.02290989,70344.0,70314.0,0.51031993]
[1771130255086,0.40373935,70347.0,70344.0,0.07107926]
[1771130255316,0.02290989,70351.0,70334.0,0.09457678]
[1771130255514,0.071074,70350.0,70341.0,0.0710822]
[1771130255764,0.07107778,70346.0,70335.0,0.07108744]
[1771130255942,1.0084737,70351.0,70334.0,0.02361832]
[1771130255943,0.07108067,70343.0,70337.0,4.5e-05]
[1771130256145,0.02290989,70349.0,70338.0,0.28434132]
[1771130256349,0.02290989,70349.0,70342.0,0.07108127]
[1771130256550,0.02290989,70349.0,70339.0,0.07108432]
[1771130256762,0.07107547,70348.0,70340.0,0.0710831]
[1771130257002,0.07107653,70347.0,70337.0,0.07113062]
[1771130257208,0.004,70343.0,70340.0,0.02348842]
[1771130257376,0.36860851,70351.0,70340.0,0.07108317]
[1771130257377,0.07107433,70349.0,70340.0,0.07108317]
[1771130257787,0.07507433,70349.0,70340.0,0.07108317]
[1771130257988,0.36860851,70351.0,70340.0,0.07108317]
[1771130258188,0.07107355,70350.0,70340.0,0.07108317]
[1771130258384,0.29753547,70351.0,70343.0,0.07108014]
[1771130258601,0.0002447,70355.0,70349.0,0.0710738]
[1771130258760,0.0002447,70355.0,70350.0,0.07107297]
[1771130260129,0.0002447,70355.0,70347.0,0.07107623]
[1771130260130,0.0002447,70355.0,70353.0,0.07106991]
[1771130260329,1e-08,70360.0,70359.0,0.07106411]
[1771130260552,0.0004,70367.0,70350.0,0.002]
[1771130260553,0.07107017,70353.0,70350.0,0.002]
[1771130260771,0.07107113,70353.0,70336.0,0.02348842]